bitfinex/quotes_SOLUSD_20250915
["timestamp","ask_amount","ask_price","bid_price","bid_amount"]
[1757932983874,0.66,236.69,236.65,37.24560563]
[1757932984077,0.66,236.68,236.65,37.24560563]
[1757932984474,0.66,236.67,236.65,37.24560563]
[1757932984668,6.80220431,236.71,236.63,4.22585417]
[1757932984975,0.66,236.66,236.63,4.22585417]
[1757932985170,0.66,236.65,236.63,37.24585417]
[1757932985370,2.57760172,236.69,236.63,37.24585417]
[1757932985680,0.66,236.67,236.63,37.24585417]
[1757932985862,0.66,236.69,236.63,37.92585417]
[1757932986983,132.5,236.73,236.67,30.2252926]
[1757932987158,133.16,236.73,236.67,63.2452926]
[1757932987357,0.66,236.72,236.67,63.2452926]
[1757932987578,0.66,236.71,236.67,63.2452926]
[1757932988073,0.03,236.69,236.67,63.2452926]
[1757932989284,0.03,236.69,236.67,63.9252926]
[1757932989875,0.03,236.69,236.68,26.0]
[1757932991470,0.03,236.69,236.68,30.22511407]
[1757932992279,0.03,236.69,236.68,30.90511407]
[1757932992791,0.03,236.69,236.68,30.22511407]
[1757932992962,0.03,236.69,236.68,63.24511407]
[1757932993284,0.03,236.69,236.68,63.92511407]
[1757932994071,0.03,236.69,236.68,63.24511407]
[1757932994272,0.03,236.69,236.68,59.0]
[1757932994585,0.69,236.69,236.65,26.0]
[1757932994767,0.66,236.68,236.62,11.24536426]
[1757932995076,0.66,236.67,236.63,33.0]
[1757932995279,0.66,236.67,236.63,0.14216157]
[1757932995506,0.69,236.69,236.65,4.22564969]
[1757932995690,0.66,236.68,236.65,4.22564969]
[1757932996079,4.25493621,236.69,236.63,4.22590593]
[1757932996283,0.66,236.67,236.64,59.0]
[1757932996592,0.66,236.66,236.63,33.0]
[1757932996803,0.66,236.65,236.63,33.0]
[1757932996976,0.66,236.64,236.61,26.0]
[1757932997173,0.66,236.63,236.58,4.22688501]
[1757932997375,0.66,236.65,236.61,26.0]
[1757932997698,0.66,236.64,236.61,26.0]
[1757932998080,4.88547114,236.66,236.61,26.0]
[1757932998276,0.66,236.65,236.61,30.22634115]
[1757932998686,0.66,236.64,236.61,30.22634115]
[1757932998888,0.66,236.64,236.61,26.0]
[1757932999412,0.66,236.63,236.61,26.0]
[1757932999614,133.19,236.69,236.62,26.68]
[1757932999777,133.19,236.69,236.65,26.0]
[1757932999778,0.03,236.69,236.65,26.0]
[1757932999983,0.03,236.69,236.66,33.82216157]
[1757933001103,0.03,236.69,236.64,26.0]
[1757933001308,0.66,236.68,236.64,26.0]
[1757933001515,0.03,236.69,236.65,37.22562095]
[1757933001808,0.69,236.69,236.65,33.0]
[1757933002007,2.33829978,236.69,236.65,33.0]
[1757933002585,1.67829978,236.69,236.65,37.22564495]
[1757933002884,0.03,236.69,236.66,0.68]
[1757933003603,0.03,236.69,236.66,4.22536015]
[1757933004311,0.03,236.69,236.66,4.90536015]
[1757933004490,0.03,236.69,236.67,0.68]
[1757933004885,0.03,236.69,236.66,4.22536015]
[1757933005096,0.03,236.69,236.66,4.90536015]
[1757933005818,0.03,236.69,236.67,0.68]
[1757933005994,0.03,236.69,236.68,33.0]
[1757933006185,0.03,236.69,236.68,33.68]
[1757933006916,0.03,236.69,236.68,37.90511407]
[1757933007123,0.03,236.69,236.68,63.90511407]
[1757933009407,0.03,236.69,236.68,37.90511407]
[1757933009707,0.03,236.69,236.68,38.04727564]
[1757933010702,0.03,236.69,236.68,5.04727564]
[1757933011015,0.03,236.69,236.68,38.04727564]
[1757933011717,0.03,236.69,236.68,51.64286965]
[1757933012607,0.03,236.74,236.71,26.0]
[1757933012819,0.03,236.74,236.73,0.14216157]
[1757933013313,0.03,236.74,236.73,0.82216157]
[1757933013511,0.03,236.74,236.73,5.04638325]
[1757933018314,0.03,236.74,236.73,37.20422168]
[1757933018499,0.03,236.74,236.73,37.88422168]
[1757933018696,0.03,236.74,236.73,37.20422168]
[1757933019505,0.03,236.74,236.73,4.22422168]
[1757933019721,0.03,236.74,236.73,37.20422168]
[1757933019915,0.03,236.74,236.73,38.02638325]
[1757933028431,0.03,236.74,236.73,38.02638325]
[1757933028832,0.03,236.74,236.73,5.04638325]
[1757933029317,0.03,236.74,236.73,38.02638325]
[1757933029517,0.03,236.74,236.73,5.04638325]
[1757933029709,0.03,236.74,236.73,38.02638325]
[1757933030304,0.03,236.74,236.73,51.62197726]
[1757933030720,0.66,236.83,236.76,26.0]
[1757933031027,0.66,236.85,236.8,26.0]
[1757933031212,0.66,236.85,236.81,32.98]
[1757933031412,0.66,236.88,236.81,33.66]
[1757933031616,0.66,236.91,236.82,0.82216157]
[1757933031819,0.66,236.91,236.83,32.98]
[1757933032019,0.66,236.9,236.83,32.98]
[1757933032216,0.66,236.9,236.84,0.14216157]
[1757933032416,0.66,236.9,236.85,32.98]
[1757933032748,0.66,236.89,236.86,4.22190323]
[1757933033026,0.66,236.91,236.87,32.98]
[1757933033728,1.64829978,236.96,236.89,0.14216157]
[1757933034029,0.66,236.94,236.9,32.98]
[1757933034530,0.66,236.94,236.91,0.14216157]
[1757933034830,0.66,236.94,236.92,37.20083403]
[1757933035022,0.66,236.94,236.93,32.98]
[1757933035222,0.66,236.96,236.93,32.98]
[1757933035525,0.66,236.95,236.94,32.98]
[1757933035721,2.30829978,236.95,236.92,32.98]
[1757933035928,1.64829978,236.93,236.92,32.98]
[1757933036127,0.66,236.93,236.92,32.98]
[1757933036307,0.66,236.93,236.89,26.0]
[1757933036308,2.30829978,236.93,236.89,26.0]
[1757933036511,0.66,236.92,236.9,32.98]
[1757933036714,0.66,236.92,236.86,26.0]
[1757933036715,0.66,236.91,236.86,26.0]
[1757933036908,1.64829978,237.0,236.86,26.0]
[1757933036909,2.30829978,236.96,236.91,0.14216157]
[1757933037227,0.66,236.96,236.92,32.96]
[1757933037428,0.66,236.95,236.92,32.96]
[1757933037627,1.64829978,236.97,236.92,32.96]
[1757933037828,2.30829978,236.94,236.93,33.04]
[1757933038019,2.30829978,236.94,236.85,4.22207938]
[1757933038226,1.64829978,236.91,236.86,59.04]
[1757933038426,0.66,236.9,236.86,59.04]
[1757933038812,0.66,236.96,236.87,0.82216157]
[1757933039133,1.64829978,236.99,236.87,0.82216157]
[1757933039309,0.66,236.98,236.87,0.82216157]
[1757933039934,4.21905324,237.02,236.91,26.0]
[1757933040135,0.66,237.0,236.92,33.92216157]
[1757933040332,0.202,237.03,236.94,0.14216157]
[1757933040633,1.64829978,237.0,236.95,33.78]
[1757933040841,0.66,236.99,236.95,33.1]
[1757933041339,4.21928145,237.01,236.96,0.14216157]
[1757933041340,1.64829978,237.01,236.96,0.14216157]
[1757933041518,2.30829978,237.01,236.96,0.14216157]
[1757933041920,0.7,237.0,236.96,0.14216157]
[1757933042142,0.7,237.0,236.97,33.1]
[1757933042327,0.7,236.99,236.97,33.1]
[1757933042640,1.64829978,237.0,236.97,33.1]
[1757933042937,0.7,236.99,236.97,33.08]
[1757933043119,0.7,236.99,236.95,0.14216157]
[1757933043322,0.7,236.99,236.96,33.08]
[1757933044212,5.86771629,237.0,236.96,33.08]
[1757933044532,0.7,236.99,236.96,33.08]
[1757933044842,1.64829978,236.97,236.89,0.69]
[1757933045042,1.64829978,236.97,236.9,37.28107308]
[1757933045355,1.64829978,236.99,236.92,0.14216157]
[1757933045633,1.64829978,236.99,236.92,0.83216157]
[1757933045936,1.64829978,236.99,236.93,26.0]
[1757933046140,0.03,237.0,236.94,33.91216157]
[1757933046737,0.03,237.0,236.96,0.14216157]
[1757933047036,0.03,237.0,236.97,4.90994345]
[1757933047217,0.03,237.0,236.98,33.93216157]
[1757933047619,0.03,237.0,236.99,0.83216157]
[1757933048723,0.03,237.0,236.99,59.24216157]
[1757933048925,0.03,237.0,236.99,64.15174889]
[1757933050114,0.03,237.0,236.99,26.14216157]
[1757933050341,0.03,237.0,236.99,33.1]
[1757933050824,2.37829978,237.0,236.99,33.1]
[1757933051029,0.73,237.0,236.99,33.1]
[1757933051430,0.73,237.0,236.96,30.22012153]
[1757933051646,0.03,237.0,236.96,30.22012153]
[1757933051832,0.73,237.0,236.97,33.1]
[1757933052147,0.03,237.0,236.97,33.1]
[1757933052324,0.03,237.0,236.98,4.21976538]
[1757933053024,0.03,237.0,236.99,33.1]
[1757933054037,0.03,237.0,236.96,4.21996595]
[1757933054341,0.03,237.0,236.99,33.08]
[1757933054724,0.73,237.0,236.99,33.08]
[1757933054920,0.03,237.0,236.99,37.29958732]
[1757933055426,0.03,237.0,236.99,38.13174889]
[1757933061950,0.03,237.0,236.99,51.7273429]
[1757933063159,0.03,237.0,236.99,4.90958732]
[1757933063349,0.03,237.0,236.99,37.92958732]
[1757933064242,0.03,237.0,236.99,38.07174889]
[1757933065149,0.03,237.0,236.99,38.09174889]
[1757933066739,0.03,237.0,236.99,51.6873429]
[1757933069848,0.03,237.0,236.99,38.05174889]
[1757933070244,0.03,237.0,236.99,5.05174889]
[1757933070730,0.03,237.0,236.99,4.21958732]
[1757933070933,0.03,237.0,236.99,30.21958732]
[1757933071135,0.03,237.0,236.99,31.05174889]
[1757933071945,0.03,237.0,236.99,30.36174889]
[1757933072748,0.03,237.0,236.99,31.03174889]
[1757933074335,0.69,237.0,236.99,26.0]
[1757933074537,0.69,237.0,236.99,59.0]
[1757933074737,0.69,237.0,236.99,63.36174889]
[1757933074942,0.69,237.0,236.99,63.21958732]
[1757933075346,0.69,237.0,236.99,63.36174889]
[1757933075551,0.69,237.0,236.99,33.0]
[1757933076164,0.69,237.0,236.93,10.55152444]
[1757933076364,0.66,236.99,236.95,0.14216157]
[1757933076834,0.66,236.98,236.96,33.0]
[1757933077039,0.66,236.97,236.96,26.0]
[1757933077239,0.66,236.97,236.96,33.0]
[1757933078046,0.66,236.97,236.94,4.22047775]
[1757933078246,0.66,236.96,236.95,59.0]
[1757933078758,0.66,236.96,236.95,33.0]
[1757933079061,0.66,236.96,236.95,33.02]
[1757933080262,0.66,236.96,236.95,37.24029964]
[1757933080863,0.03,237.0,236.95,37.91029964]
[1757933081054,0.03,237.0,236.98,26.0]
[1757933081256,0.03,237.0,236.99,59.16216157]
[1757933081763,0.03,237.0,236.99,59.83216157]
[1757933082355,0.03,237.0,236.99,63.38174889]
[1757933083563,0.03,237.0,236.99,30.36174889]
[1757933083757,0.03,237.0,236.99,63.21958732]
[1757933083959,0.69,237.0,236.99,37.21958732]
[1757933085364,0.69,237.0,236.98,26.0]
[1757933085560,0.03,237.0,236.99,33.0]
[1757933086765,0.03,237.0,236.99,33.14216157]
[1757933087356,0.03,237.0,236.99,37.36174889]
[1757933090587,0.03,237.0,236.99,38.02174889]
[1757933091286,0.03,237.0,236.99,37.36174889]
[1757933092484,0.03,237.0,236.99,38.02174889]
[1757933094693,0.03,237.0,236.99,37.36174889]
[1757933097865,0.03,237.0,236.99,38.02174889]
[1757933099194,0.03,237.0,236.99,37.36174889]
[1757933100463,0.7,237.0,236.99,63.32174889]
[1757933100888,0.7,237.0,236.96,26.0]
[1757933101073,0.67,236.99,236.97,32.96]
[1757933101479,0.03,237.0,236.97,32.96]
[1757933101683,0.71,237.0,236.97,32.96]
[1757933101989,0.68,236.99,236.97,37.17986566]
[1757933102174,0.68,236.99,236.98,58.96]
[1757933102379,0.03,237.0,236.98,58.96]
[1757933102578,0.71,237.0,236.98,58.96]
[1757933103179,0.03,237.0,236.98,58.96]
[1757933103681,0.68,236.99,236.97,30.21986566]
[1757933103886,0.03,237.0,236.99,4.21958732]
[1757933104276,0.03,237.0,236.99,4.92958732]
[1757933104787,0.03,237.0,236.99,4.21958732]
[1757933105386,0.03,237.0,236.99,37.17958732]
[1757933108997,0.71,237.0,236.96,36.55016852]
[1757933109178,0.68,236.99,236.95,4.22029964]
[1757933109376,2.56613893,236.97,236.96,32.96]
[1757933109577,3.24613893,236.97,236.96,32.96]
[1757933109799,3.24613893,236.97,236.93,32.96]
[1757933109979,2.56613893,236.94,236.89,6.78733744]
[1757933110181,2.56613893,236.92,236.89,2.56613893]
[1757933110400,0.68,236.91,236.9,32.96]
[1757933110907,0.68,236.91,236.84,26.0]
[1757933110908,3.24613893,236.91,236.81,14.77978125]
[1757933111198,2.56613893,236.88,236.83,2.84519499]
[1757933111408,2.56613893,236.87,236.84,32.96]
[1757933111902,0.68,236.92,236.85,0.71]
[1757933112087,2.56613893,236.95,236.87,40.77603748]
[1757933112298,0.68,236.94,236.88,32.96]
[1757933112481,2.56613893,236.9,236.88,32.96]
[1757933112686,2.56613893,236.9,236.8,2.20614777]
[1757933112687,0.68,236.89,236.87,32.96]
[1757933112902,0.68,236.88,236.85,32.96]
[1757933113083,7.06497226,236.98,236.86,0.71]
[1757933113278,2.56613893,236.93,236.86,0.71]
[1757933113484,3.24613893,236.93,236.86,0.71]
[1757933113703,0.68,236.96,236.87,0.14216157]
[1757933113902,3.24613893,236.96,236.88,33.67]
[1757933114113,0.68,236.96,236.89,14.77478997]
[1757933114412,3.24613893,236.99,236.9,0.85216157]
[1757933114583,0.03,237.0,236.94,26.0]
[1757933114778,0.03,237.0,236.95,33.67]
[1757933115185,0.71,237.0,236.94,26.0]
[1757933115385,0.71,237.0,236.95,32.96]
[1757933115585,2.59613893,237.0,236.95,32.96]
[1757933115812,3.27613893,237.0,236.95,32.96]
[1757933115988,2.56613893,236.96,236.91,4.36300864]
[1757933116186,3.24613893,236.95,236.91,32.96]
[1757933116384,3.24613893,236.94,236.91,32.96]
[1757933116582,2.56613893,236.93,236.91,32.96]
[1757933116808,2.56613893,236.93,236.9,37.18115079]
[1757933117883,3.24613893,236.95,236.9,37.18115079]
[1757933118085,0.68,236.94,236.9,37.18115079]
[1757933118288,2.56613893,236.95,236.9,37.18115079]
[1757933118490,0.68,236.94,236.9,37.18115079]
[1757933118702,0.68,236.93,236.9,37.18115079]
[1757933119001,0.68,236.99,236.91,0.71]
[1757933119614,2.56613893,236.98,236.92,4.22083403]
[1757933119812,0.68,236.97,236.93,32.96]
[1757933120515,0.68,236.96,236.93,32.96]
[1757933120818,0.68,236.96,236.92,32.96]
[1757933120996,2.32378338,236.98,236.92,32.96]
[1757933121313,1.64378338,236.96,236.91,37.18098978]
[1757933121500,1.64378338,236.96,236.91,37.89098978]
[1757933121700,5.86390674,236.96,236.91,37.89098978]
[1757933122094,5.86390674,236.96,236.91,4.93098978]
[1757933122300,0.68,236.95,236.89,37.1812378]
[1757933122502,1.64378338,236.94,236.89,37.1812378]
[1757933122696,0.68,236.93,236.89,37.1812378]
[1757933122915,2.32378338,236.92,236.84,11.26556121]
[1757933123100,2.32378338,236.92,236.87,32.96]
[1757933123492,6.54468126,236.92,236.87,32.96]
[1757933124102,6.54468126,236.92,236.87,33.67]
[1757933124304,1.64378338,236.92,236.87,4.93163667]
[1757933124492,1.64378338,236.92,236.87,37.89163667]
[1757933124686,5.86472149,236.92,236.87,33.67]
[1757933124904,4.90093811,236.92,236.87,32.96]
[1757933125106,4.90093811,236.92,236.85,4.22194632]
[1757933125107,4.90093811,236.92,236.85,4.93194632]
[1757933125305,1.64378338,236.91,236.86,32.96]
[1757933125510,1.64378338,236.91,236.86,33.67]
[1757933125695,5.86480904,236.91,236.85,4.22194632]
[1757933125888,6.54480904,236.91,236.85,37.18194632]
[1757933126091,1.64378338,236.9,236.85,32.96]
[1757933126310,1.64378338,236.9,236.86,0.71]
[1757933127103,4.9007805,236.93,236.85,4.22207788]
[1757933127406,1.64378338,236.91,236.86,0.71]
[1757933127710,1.64378338,236.91,236.86,4.93189851]
[1757933127711,6.54479844,236.91,236.86,4.93189851]
[1757933128118,1.64378338,236.89,236.84,37.18208464]
[1757933128320,1.64378338,236.89,236.85,0.71]
[1757933128496,1.64378338,236.89,236.86,0.71]
[1757933129012,4.90101506,236.91,236.86,0.71]
[1757933129204,1.64378338,236.89,236.86,0.71]
[1757933129614,1.64378338,236.87,236.81,26.71]
[1757933129914,1.64378338,236.85,236.82,4.22261633]
[1757933131016,1.64378338,236.84,236.81,59.67]
[1757933131316,1.64378338,236.83,236.81,32.96]
[1757933132216,4.22177743,236.87,236.77,36.76065924]
[1757933132217,1.64378338,236.82,236.78,4.22317412]
[1757933132397,1.64378338,236.8,236.77,26.06]
[1757933132721,1.64378338,236.8,236.77,59.73]
[1757933133017,1.64378338,236.8,236.77,0.77]
[1757933133202,1.64378338,236.8,236.77,0.06]
[1757933133516,1.64378338,236.78,236.77,0.06]
[1757933135113,136.72129996,236.9,236.77,4.99347689]
[1757933135315,1.64378338,236.86,236.78,33.67]
[1757933135521,1.64378338,236.86,236.79,0.71]
[1757933135817,0.67,236.88,236.79,0.71]
[1757933136213,2.31378338,236.88,236.81,26.0]
[1757933136523,2.31378338,236.88,236.81,26.71]
[1757933137835,2.31378338,236.88,236.82,4.22261633]
[1757933138529,1.64378338,236.87,236.82,4.22261633]
[1757933138727,2.31378338,236.87,236.82,4.22261633]
[1757933139024,2.31378338,236.87,236.82,4.93261633]
[1757933139516,2.31378338,236.87,236.82,4.22261633]
[1757933139695,1.64378338,236.86,236.82,4.22261633]
[1757933139901,1.64378338,236.85,236.82,4.22261633]
[1757933140102,1.64378338,236.83,236.8,32.98]
[1757933140403,1.64378338,236.81,236.78,4.22332967]
[1757933140713,1.64378338,236.8,236.78,4.22332967]
[1757933140915,1.64378338,236.81,236.78,4.22332967]
[1757933141428,1.64378338,236.8,236.77,4.28350161]
[1757933141724,1.64378338,236.79,236.77,4.28350161]
[1757933142312,1.64378338,236.78,236.77,0.06]
[1757933144824,2.31378338,236.78,236.77,0.06]
[1757933145020,1.64378338,236.78,236.77,0.06]
[1757933145706,132.5,236.85,236.77,4.28350804]
[1757933145707,1.64378338,236.79,236.77,4.28350804]
[1757933145907,1.64378338,236.83,236.78,0.71]
[1757933146313,1.64378338,236.82,236.78,0.71]
[1757933147618,2.31378338,236.82,236.77,14.84227815]
[1757933147925,2.31378338,236.82,236.77,15.55227815]
[1757933148625,1.64378338,236.84,236.78,0.71]
[1757933148820,132.5,236.85,236.78,33.69]
[1757933149026,132.5,236.85,236.79,0.71]
[1757933150530,132.5,236.85,236.8,14.7804054]
[1757933150824,132.5,236.85,236.8,15.4804054]
[1757933151413,1.64378338,236.82,236.78,4.22332967]
[1757933151818,1.64378338,236.83,236.78,4.92332967]
[1757933152233,1.64378338,236.82,236.78,4.22332967]
[1757933153040,1.64378338,236.8,236.77,4.28348647]
[1757933153209,1.64378338,236.79,236.77,4.28348647]
[1757933154327,132.5,236.85,236.78,0.7]
[1757933154535,132.5,236.85,236.79,26.0]
[1757933154722,0.03,236.88,236.8,0.7]
[1757933155026,1.64378338,236.87,236.81,32.98]
[1757933157134,1.64378338,236.87,236.82,4.22261633]
[1757933157307,0.69,236.87,236.82,4.22261633]
[1757933157630,2.33378338,236.87,236.82,4.92261633]
[1757933158738,1.64378338,236.83,236.79,32.98]
[1757933159240,1.64378338,236.83,236.8,4.22297297]
[1757933159530,1.64378338,236.82,236.79,32.98]
[1757933159736,1.64378338,236.82,236.78,4.22320041]
[1757933160342,1.64378338,236.81,236.77,4.28348272]
[1757933160534,1.64378338,236.81,236.78,0.7]
[1757933160736,1.64378338,236.81,236.77,4.28348272]
[1757933160929,1.64378338,236.81,236.78,0.7]
[1757933161639,1.64378338,236.82,236.78,4.92326293]
[1757933161819,1.64378338,236.82,236.79,0.72]
[1757933162139,4.22209017,236.86,236.8,0.72]
[1757933162435,1.64378338,236.86,236.8,33.7]
[1757933162639,134.14378338,236.87,236.8,33.7]
[1757933163444,1.64378338,236.86,236.8,33.7]
[1757933163620,1.64378338,236.86,236.81,4.22279464]
[1757933163825,1.64378338,236.85,236.81,0.72]
[1757933164445,1.64378338,236.82,236.77,0.06]
[1757933164651,1.64378338,236.79,236.77,0.06]
[1757933164946,1.64378338,236.8,236.77,4.28349221]
[1757933165439,1.64378338,236.79,236.77,4.28349221]
[1757933166646,4.91263206,236.82,236.77,4.28349221]
[1757933166647,1.64378338,236.8,236.77,4.28349221]
[1757933167349,1.64378338,236.79,236.77,0.06]
[1757933167542,1.64378338,236.78,236.77,0.06]
[1757933168356,1.64378338,236.78,236.77,26.06]
[1757933169032,0.69,236.81,236.77,26.06]
[1757933169240,1.64378338,236.78,236.77,30.28350804]
[1757933169446,1.64378338,236.78,236.77,0.06]
[1757933169845,1.64378338,236.78,236.77,26.06]
[1757933170247,1.64378338,236.78,236.77,30.28350804]
[1757933170635,1.64378338,236.79,236.77,30.28350804]
[1757933171435,0.69,236.82,236.77,31.00350804]
[1757933171436,1.64378338,236.8,236.77,31.00350804]
[1757933171954,1.64378338,236.8,236.77,30.28350804]
[1757933172248,1.64378338,236.8,236.77,31.00350804]
[1757933173555,1.64378338,236.79,236.77,31.00350804]
[1757933173851,1.64378338,236.79,236.77,4.28350804]
[1757933174035,0.69,236.82,236.77,4.28350804]
[1757933174234,1.64378338,236.79,236.77,4.28350804]
[1757933176763,1.64378338,236.79,236.77,30.28350804]
[1757933179259,1.64378338,236.79,236.77,31.00350804]
[1757933179450,1.64378338,236.78,236.77,30.28350804]
[1757933179758,1.64378338,236.79,236.77,30.28350804]
[1757933179959,134.83378338,236.78,236.77,0.06]
[1757933180144,137.68118108,236.78,236.77,0.06]
[1757933180463,151.27677509,236.78,236.77,0.06]
[1757933180647,152.92055847,236.78,236.77,0.06]
[1757933180954,157.83252716,236.78,236.77,0.06]
[1757933181138,13.59559401,236.77,236.74,0.06]
[1757933181333,5.86764821,236.75,236.74,0.06]
[1757933181967,7.48823774,236.75,236.74,0.06]
[1757933183256,23.92735536,236.75,236.74,0.06]
[1757933183650,23.92735536,236.75,236.68,0.06]
[1757933183651,39.59559401,236.69,236.68,0.06]
[1757933183863,75.12996692,236.69,236.68,0.06]
[1757933184048,78.66421492,236.69,236.68,0.06]
[1757933184247,75.85996692,236.69,236.68,0.06]
[1757933184747,78.70131535,236.69,236.68,0.06]
[1757933185465,82.92625091,236.69,236.68,0.06]
[1757933185766,18.74433983,236.66,236.65,0.06]
[1757933186275,2.57437291,236.66,236.65,0.06]
[1757933186758,3.26437291,236.66,236.65,0.06]
[1757933187142,5.83874582,236.66,236.65,0.06]
[1757933187662,10.06421696,236.66,236.65,0.06]
[1757933188345,13.59559401,236.65,236.57,0.06]
[1757933188552,2.57437291,236.58,236.57,0.78]
[1757933190048,4.22654148,236.61,236.57,0.78]
[1757933190049,0.69,236.61,236.57,0.06]
[1757933190258,2.57437291,236.58,236.57,0.06]
[1757933190565,146.09559401,236.63,236.57,0.06]
[1757933190566,10.5634596,236.67,236.57,5.00702662]
[1757933190861,2.57437291,236.62,236.58,0.72]
[1757933191066,2.57437291,236.63,236.58,0.72]
[1757933191763,2.57437291,236.62,236.59,0.72]
[1757933192067,2.57437291,236.61,236.6,0.72]
[1757933193557,2.57437291,236.61,236.57,26.06]
[1757933193756,2.57437291,236.58,236.57,30.28707866]
[1757933193962,2.57437291,236.6,236.57,30.28707866]
[1757933194151,2.57437291,236.61,236.57,30.28707866]
[1757933194344,2.57437291,236.61,236.58,0.72]
[1757933194545,2.57437291,236.61,236.59,0.72]
[1757933194848,2.57437291,236.61,236.6,0.72]
[1757933195969,7.48077597,236.61,236.57,0.06]
[1757933196154,2.57437291,236.58,236.57,0.06]
[1757933197165,6.8012729,236.58,236.57,0.06]
[1757933197366,0.68,236.62,236.57,0.06]
[1757933197678,2.57437291,236.59,236.58,0.72]
[1757933201874,2.57437291,236.59,236.57,0.06]
[1757933202053,2.57437291,236.58,236.57,0.78]
[1757933202249,0.03,236.65,236.57,5.00707866]
[1757933202449,2.57437291,236.62,236.58,0.72]
[1757933202674,2.57437291,236.63,236.59,4.94669917]
[1757933202973,2.57437291,236.61,236.59,0.72]
[1757933205272,2.57437291,236.61,236.58,4.22689161]
[1757933205456,2.57437291,236.62,236.58,4.94689161]
[1757933205652,2.57437291,236.64,236.59,0.72]
[1757933205860,2.57437291,236.64,236.58,4.22689161]
[1757933206063,2.57437291,236.64,236.58,4.94689161]
[1757933206373,2.57437291,236.63,236.58,4.94689161]
[1757933206676,2.57437291,236.63,236.59,0.72]
[1757933206973,2.57437291,236.63,236.58,4.22689161]
[1757933207169,2.57437291,236.63,236.59,0.72]
[1757933207475,2.57437291,236.63,236.6,0.72]
[1757933207858,2.57437291,236.62,236.58,0.72]
[1757933208055,2.57437291,236.61,236.58,0.72]
[1757933209456,0.03,236.65,236.58,0.72]
[1757933209661,0.03,236.65,236.6,26.0]
[1757933209963,0.03,236.65,236.61,0.72]
[1757933210364,0.03,236.65,236.59,4.22672133]
[1757933210565,0.03,236.65,236.61,4.94633038]
[1757933210763,0.03,236.65,236.62,0.72]
[1757933211463,0.03,236.65,236.63,0.72]
[1757933211969,0.03,236.65,236.64,0.72]
[1757933212482,0.03,236.65,236.64,26.72]
[1757933214182,0.03,236.65,236.64,30.94582826]
[1757933214401,0.03,236.65,236.64,31.08798983]
[1757933216091,0.03,236.65,236.64,64.10582826]
[1757933217514,0.03,236.65,236.64,4.94582826]
[1757933220207,0.03,236.65,236.64,5.08798983]
[1757933221997,0.03,236.65,236.64,18.68358384]
[1757933224301,0.03,236.65,236.64,51.80358384]
[1757933225316,13.59559401,236.58,236.57,0.06]
[1757933225525,39.59559401,236.55,236.54,0.57330088]
[1757933226021,39.59559401,236.55,236.48,0.2]
[1757933226022,66.75396918,236.55,236.48,0.2]
[1757933226213,2.83916301,236.54,236.48,0.2]
[1757933226414,15.71464238,236.54,236.48,0.2]
[1757933227628,19.94225715,236.54,236.48,0.2]
[1757933228424,32.76003359,236.54,236.48,0.2]
[1757933228730,46.3556276,236.54,236.48,0.2]
[1757933229034,44.70820989,236.56,236.48,0.2]
[1757933229035,3.54541004,236.62,236.53,0.87]
[1757933229210,6.22017683,236.55,236.53,0.2]
[1757933229412,0.69,236.54,236.53,0.2]
[1757933229817,9.05548325,236.55,236.53,0.2]
[1757933230030,6.22017683,236.55,236.53,0.2]